bitfinex/quotes_ETHUSD_20241216
["timestamp","ask_amount","ask_price","bid_price","bid_amount"]
[1734379177711,0.18415409,4053.8,4053.0,0.31525053]
[1734379177908,0.18415409,4054.0,4053.0,0.31525053]
[1734379178233,0.55,4054.1,4053.0,0.33014317]
[1734379178401,0.55,4054.1,4052.7,3.75772472]
[1734379178587,0.18414931,4054.0,4052.8,2.12512828]
[1734379178934,0.18414931,4053.9,4052.9,0.85005131]
[1734379179097,0.55,4054.1,4052.7,3.75772472]
[1734379179302,0.18417061,4054.0,4052.8,2.12504993]
[1734379179487,0.18417061,4053.9,4052.9,2.7133274]
[1734379179686,0.55,4054.1,4052.9,2.7133274]
[1734379179687,0.55,4054.1,4053.0,2.12504993]
[1734379179913,0.1841779,4054.0,4053.0,2.12504993]
[1734379180118,0.7539,4053.8,4053.1,0.37403419]
[1734379180335,0.7539,4053.8,4052.9,0.58827747]
[1734379180483,0.7539,4053.8,4053.0,0.85023809]
[1734379180929,0.7539,4053.8,4052.9,0.58827747]
[1734379181227,0.7539,4053.8,4053.0,0.85020613]
[1734379181794,0.7539,4053.8,4053.1,0.85020613]
[1734379182025,0.7539,4053.8,4053.2,0.85020613]
[1734379182333,0.7539,4053.8,4052.9,1.61529199]
[1734379182528,0.7539,4053.8,4053.0,2.71455623]
[1734379182713,0.7539,4053.8,4053.1,0.85036153]
[1734379182914,0.7539,4053.8,4052.9,1.02701452]
[1734379182915,0.7539,4053.8,4052.7,1.02701452]
[1734379183231,0.7539,4053.8,4052.8,2.12622253]
[1734379183420,0.7539,4053.8,4052.5,1.02701452]
[1734379183421,0.18422841,4053.7,4052.5,1.02701452]
[1734379183737,0.18422841,4053.6,4052.7,3.75772472]
[1734379183904,0.7539,4053.8,4052.8,3.0391059]
[1734379184236,0.7539,4053.8,4052.9,2.12652595]
[1734379184443,0.7539,4053.8,4053.0,0.85061038]
[1734379184605,0.18423778,4053.7,4052.8,0.91257995]
[1734379184791,0.18423778,4053.7,4052.9,2.12699926]
[1734379184993,0.7539,4053.8,4053.0,0.71125545]
[1734379185799,0.18424369,4053.7,4053.0,0.71125545]
[1734379186141,0.7539,4053.8,4053.0,0.71125545]
[1734379186339,0.18424992,4053.7,4052.6,1.02701452]
[1734379186638,0.18424992,4053.6,4052.7,1.02701452]
[1734379186799,0.7539,4053.8,4052.7,1.02701452]
[1734379186800,0.18425728,4053.7,4052.7,1.02701452]
[1734379187133,0.7539,4053.8,4052.7,1.87780638]
[1734379187344,0.18425796,4053.7,4052.8,2.59643126]
[1734379187504,0.7539,4053.8,4052.9,2.12678893]
[1734379187707,0.18426612,4053.7,4053.0,0.85079186]
[1734379187937,0.7539,4053.8,4052.8,0.4694516]
[1734379188090,0.18427293,4053.7,4052.9,2.12649912]
[1734379188291,0.7539,4053.8,4053.0,0.85059965]
[1734379188536,0.18429216,4053.7,4052.8,0.4694516]
[1734379188749,0.18429216,4053.6,4052.8,3.6245528]
[1734379188896,0.55,4053.9,4052.9,2.12808668]
[1734379189103,0.9619945,4053.8,4052.6,1.02701452]
[1734379189313,0.9619945,4053.7,4052.6,1.02701452]
[1734379189498,0.7777,4053.5,4052.6,1.02701452]
[1734379189700,0.7777,4053.5,4052.7,2.12830351]
[1734379189910,0.7777,4053.5,4052.8,0.8513214]
[1734379190134,0.7777,4053.5,4052.8,1.26048829]
[1734379190341,0.18432142,4053.4,4052.8,1.26048829]
[1734379190562,0.7777,4053.5,4052.8,1.26048829]
[1734379190845,0.18434134,4053.4,4052.8,1.26048829]
[1734379191012,0.7777,4053.5,4052.8,1.26048829]
[1734379191214,0.18434156,4053.4,4052.8,1.26048829]
[1734379191417,0.7777,4053.5,4052.8,1.26048829]
[1734379191614,0.18437201,4053.4,4052.8,1.26048829]
[1734379191852,0.7777,4053.5,4052.8,1.26048829]
[1734379192452,0.18437098,4053.4,4052.8,1.26048829]
[1734379192743,0.7777,4053.5,4052.8,1.26048829]
[1734379193043,0.18437701,4053.4,4052.8,1.26048829]
[1734379193342,0.7777,4053.5,4052.8,1.26048829]
[1734379193516,0.18438173,4053.4,4052.8,1.26048829]
[1734379193843,0.7777,4053.5,4052.8,1.26048829]
[1734379194006,0.18438225,4053.4,4052.8,1.26048829]
[1734379194205,0.7777,4053.5,4052.8,1.26048829]
[1734379194541,0.18438188,4053.4,4052.8,1.26048829]
[1734379194739,0.7777,4053.5,4052.8,1.26048829]
[1734379194900,0.18440316,4053.4,4052.8,1.26048829]
[1734379195101,0.7777,4053.5,4052.8,1.26048829]
[1734379195301,0.18440307,4053.4,4052.8,1.26048829]
[1734379195502,0.18444638,4053.3,4052.8,1.26048829]
[1734379195709,0.7777,4053.5,4052.8,1.26048829]
[1734379195949,0.18444624,4053.4,4052.8,1.26048829]
[1734379196152,0.18444624,4053.3,4052.8,1.26048829]
[1734379196327,0.7777,4053.5,4052.8,1.26048829]
[1734379196526,0.18447222,4053.4,4052.8,1.26048829]
[1734379196726,0.18447222,4053.3,4052.8,1.26048829]
[1734379197023,0.7777,4053.5,4052.8,1.26048829]
[1734379197353,0.7777,4053.5,4052.5,1.02701452]
[1734379197354,0.18447512,4053.4,4052.5,1.02701452]
[1734379197519,0.97457512,4053.3,4052.4,1.02701452]
[1734379197720,3.55,4053.9,4052.4,2.12815263]
[1734379197721,0.7901,4053.1,4052.4,2.12815263]
[1734379197921,0.18447512,4053.0,4052.1,2.28750281]
[1734379198250,0.97460597,4052.9,4052.5,1.26048829]
[1734379198456,0.8154,4053.2,4052.8,1.26048829]
[1734379200227,0.7692,4053.8,4052.8,1.57573882]
[1734379200560,0.7692,4053.8,4053.2,1.26048829]
[1734379201355,0.7692,4053.8,4053.3,0.8513115]
[1734379201356,0.18451818,4053.7,4053.3,0.8513115]
[1734379201509,0.7692,4053.8,4053.3,0.8513115]
[1734379201714,0.7692,4053.8,4053.2,1.26048829]
[1734379201715,0.18451861,4053.7,4053.2,1.26048829]
[1734379202019,0.7692,4053.8,4053.2,1.26048829]
[1734379202245,0.18451845,4053.7,4053.0,1.02701452]
[1734379202442,0.7692,4053.8,4053.2,1.02701452]
[1734379202810,0.7692,4053.8,4053.3,2.12858802]
[1734379203014,0.7692,4053.8,4053.4,0.85143521]
[1734379203486,0.7692,4053.8,4053.2,1.02701452]
[1734379203640,0.12343213,4054.5,4053.3,0.85182487]
[1734379203641,0.18451595,4053.7,4053.3,0.85182487]
[1734379203844,0.94181595,4053.6,4052.6,1.02701452]
[1734379204175,11.95,4054.1,4052.7,2.1305398]
[1734379204176,0.8045,4053.4,4052.7,2.1305398]
[1734379204405,0.8045,4053.4,4052.1,2.05402905]
[1734379204406,0.8045,4053.4,4052.8,2.13053288]
[1734379204555,0.18454575,4053.3,4052.6,1.02701452]
[1734379204762,0.8045,4053.4,4052.6,1.02701452]
[1734379204957,0.18454676,4053.3,4052.6,1.02701452]
[1734379205154,0.18454676,4053.2,4052.6,1.02701452]
[1734379205378,0.8045,4053.4,4052.7,2.13072806]
[1734379205682,0.8045,4053.4,4052.8,2.30545136]
[1734379205885,0.8045,4053.4,4052.9,2.13072806]
[1734379206195,0.8045,4053.4,4053.0,3.15774258]
[1734379206355,0.7866,4054.0,4053.1,3.15774258]
[1734379206546,0.18454668,4053.9,4053.3,1.02701452]
[1734379206746,0.7866,4054.0,4053.5,1.02701452]
[1734379206973,0.7866,4054.0,4053.6,2.13072806]
[1734379207283,0.7866,4054.0,4053.7,2.13060697]
[1734379207487,0.7866,4054.0,4053.3,1.54052178]
[1734379207488,0.7866,4054.0,4053.8,0.85224279]
[1734379207687,0.7866,4054.0,4053.5,1.02701452]
[1734379208295,0.7866,4054.0,4053.6,0.8522698]
[1734379208609,0.7866,4054.0,4053.7,0.85224719]
[1734379208811,0.7866,4054.0,4053.4,1.02701452]
[1734379208982,0.18445604,4053.9,4053.5,2.13070241]
[1734379209170,0.7866,4054.0,4053.3,1.02701452]
[1734379209372,0.7866,4054.0,4053.0,10.64324607]
[1734379209373,0.18446042,4053.9,4053.4,2.13084181]
[1734379209581,0.18446042,4053.8,4053.1,1.02701452]
[1734379209899,0.18446372,4053.7,4053.2,0.85226331]
[1734379210108,0.7866,4054.0,4053.3,3.1576728]
[1734379210309,0.18445613,4053.9,4053.4,0.85226331]
[1734379210483,0.7866,4054.0,4053.5,2.13065828]
[1734379210704,0.7866,4054.0,4053.6,2.13160733]
[1734379210888,0.7866,4054.0,4053.4,1.02701452]
[1734379211417,0.7866,4054.0,4053.4,1.87994569]
[1734379211615,0.7866,4054.0,4053.5,2.13232793]
[1734379211819,0.7866,4054.0,4053.6,0.85276803]
[1734379211820,0.18442687,4053.9,4053.6,0.85276803]
[1734379212042,0.18442687,4053.9,4053.3,1.02701452]
[1734379212043,0.7866,4054.0,4053.3,1.02701452]
[1734379212316,0.1844259,4053.9,4053.3,1.02701452]
[1734379212501,0.7866,4054.0,4053.3,1.87964599]
[1734379212707,0.18441656,4053.9,4053.3,3.1585932]
[1734379212919,0.7866,4054.0,4053.4,2.13157868]
[1734379213128,0.7866,4054.0,4053.3,1.02701452]
[1734379213129,0.18441788,4053.9,4053.5,2.13157868]
[1734379213294,0.12343213,4054.5,4053.6,2.13185569]
[1734379213620,1.01729322,4054.4,4053.6,2.13185569]
[1734379213820,1.01729322,4054.4,4053.7,2.13185569]
[1734379213821,0.8329,4054.4,4053.7,2.13185569]
[1734379214020,0.18439076,4054.3,4053.7,0.85263147]
[1734379214322,0.18439108,4054.2,4053.5,1.02701452]
[1734379214506,0.18439108,4054.1,4053.5,3.15890197]
[1734379214697,0.8329,4054.4,4053.5,3.15890197]
[1734379214894,0.18436939,4054.3,4053.5,3.15890197]
[1734379215130,0.18436939,4054.2,4053.5,3.15890197]
[1734379215425,0.18436939,4054.1,4053.5,3.15890197]
[1734379215596,0.8329,4054.4,4053.5,3.15890197]
[1734379215784,0.18435071,4054.3,4053.5,3.15890197]
[1734379216122,0.55,4054.0,4053.0,10.64324607]
[1734379216298,0.7682,4053.8,4053.1,2.13320768]
[1734379216481,0.7682,4053.8,4053.0,10.64324607]
[1734379216482,0.18435071,4053.7,4053.0,10.64324607]
[1734379216821,0.95255071,4053.6,4053.1,2.13378]
[1734379216991,0.18435071,4053.5,4053.1,2.13378]
[1734379217193,0.7682,4053.6,4053.1,3.16079452]
[1734379217395,0.7682,4053.6,4053.2,3.66823624]
[1734379217726,0.8172,4054.2,4053.3,3.16079452]
[1734379217929,0.18435368,4054.1,4053.3,3.16079452]
[1734379218279,0.18435368,4054.0,4053.2,0.31525053]
[1734379218421,0.8172,4054.2,4053.2,0.31525053]
[1734379218616,0.18434607,4054.1,4053.2,2.86026453]
[1734379218818,0.18434607,4054.0,4053.4,1.03212266]
[1734379219003,0.8172,4054.2,4053.4,1.88555909]
[1734379219330,0.18434878,4054.1,4053.5,0.85343643]
[1734379219533,0.18434878,4054.1,4053.2,1.34737319]
[1734379219534,0.18434878,4054.0,4053.2,1.34737319]
[1734379219735,0.18434878,4053.9,4053.3,2.1339993]
[1734379220032,0.8172,4054.2,4053.4,2.1339993]
[1734379220244,0.1843454,4054.1,4053.9,2.73053351]
[1734379220394,0.8288,4054.9,4054.0,2.45109153]
[1734379220587,0.8288,4054.9,4054.3,2.73053351]
[1734379220939,0.8288,4055.5,4054.4,3.16390829]
[1734379221234,0.8288,4055.5,4054.3,4.27871751]
[1734379221235,0.18426597,4055.4,4054.5,3.16390829]
[1734379221386,0.18426597,4055.3,4054.6,0.85271425]
[1734379221588,0.18426597,4055.2,4054.4,1.03212266]
[1734379221919,0.8288,4055.5,4054.5,0.56260907]
[1734379222082,0.18416478,4055.4,4054.6,2.13055361]
[1734379222285,0.18416478,4055.3,4054.5,0.56260907]
[1734379222487,0.8288,4055.5,4054.6,2.12968572]
[1734379222728,0.18407656,4055.4,4054.6,2.12968572]
[1734379222934,0.18407656,4055.3,4054.7,0.37244175]
[1734379223435,0.8288,4055.5,4054.5,1.32830907]
[1734379223615,0.18401052,4055.4,4054.6,0.85166379]
[1734379224202,0.18401052,4055.4,4054.7,2.73053351]
[1734379224410,0.7968,4055.8,4055.1,2.73053351]
[1734379224636,1.03260993,4056.4,4055.1,2.73053351]
[1734379224637,0.8217,4056.4,4055.2,1.61248386]
[1734379224793,0.18391625,4056.3,4055.2,0.7617]
[1734379224988,0.8217,4056.4,4055.2,0.7617]
[1734379224989,0.18391625,4056.2,4055.2,0.7617]
[1734379225307,0.8217,4056.4,4055.2,0.7617]
[1734379225510,0.1837877,4056.3,4055.2,0.7617]
[1734379226116,0.1837877,4056.3,4055.2,0.78635678]
[1734379226924,0.8217,4056.4,4055.2,0.78635678]
[1734379227136,0.8155,4056.7,4055.9,2.73053351]
[1734379227292,0.8155,4056.7,4055.9,3.50973351]
[1734379233421,0.8155,4056.7,4055.9,3.49973351]
[1734379234073,0.8155,4056.7,4055.9,3.81498404]
[1734379234392,0.8155,4056.7,4055.9,4.16495739]
[1734379234523,0.7631,4057.1,4056.3,2.73053351]
[1734379235237,0.1477536,4057.2,4056.5,0.809]
[1734379235826,0.1477536,4057.2,4056.3,3.04578404]
[1734379236020,0.1477536,4057.2,4056.3,2.73053351]
[1734379236353,0.7761,4057.1,4055.9,2.73053351]
[1734379236522,0.7761,4057.1,4055.8,0.809]
[1734379236723,0.7761,4057.1,4055.9,2.73053351]
[1734379237157,0.8318,4056.9,4055.9,2.73053351]
[1734379239489,0.8318,4056.9,4055.9,3.04578404]
[1734379242300,0.9138536,4057.2,4056.7,2.73053351]
[1734379242481,0.9138536,4057.2,4056.5,0.7796]
[1734379243052,0.9138536,4057.2,4056.2,2.73053351]
[1734379243290,0.9138536,4057.2,4056.1,0.7882]
[1734379244606,3.0,4057.1,4055.7,0.7882]
[1734379244819,0.7774,4057.0,4055.7,0.7882]
[1734379246469,0.7774,4057.0,4055.7,1.39700483]
[1734379246993,0.7603,4057.1,4055.8,0.31525053]
[1734379247306,0.7603,4056.9,4055.4,3.55843351]
[1734379247509,0.7603,4056.9,4055.4,4.16723834]
[1734379247718,0.7603,4056.9,4055.5,0.31525053]
[1734379248211,0.7603,4056.9,4055.5,0.60880483]
[1734379248455,0.7603,4056.9,4055.6,0.31820785]
[1734379248622,0.7603,4056.9,4056.0,0.7829]
[1734379248771,0.1477536,4057.2,4056.4,0.7829]
[1734379248972,0.1477536,4057.2,4056.1,0.96014818]
[1734379248973,0.1477536,4057.2,4056.7,2.73053351]
[1734379249309,0.1477536,4057.2,4056.8,1.39170483]
[1734379250413,0.1477536,4057.2,4057.1,2.73053351]
[1734379250897,0.1477536,4057.2,4056.9,0.7653]
[1734379251216,0.1477536,4057.2,4056.4,0.7653]
[1734379252215,0.7593,4057.1,4056.1,0.7653]
[1734379252395,0.18386376,4057.0,4055.8,1.08055053]
[1734379252601,0.7593,4057.1,4055.8,1.08055053]
[1734379252782,0.18386372,4057.0,4055.8,1.08055053]
[1734379252970,0.18386372,4056.9,4055.8,1.08055053]
[1734379253176,0.7593,4057.1,4055.8,1.08055053]
[1734379253374,0.18387051,4057.0,4055.8,1.08055053]
[1734379253702,0.18387051,4056.9,4055.8,1.08055053]
[1734379253885,0.18387051,4056.8,4055.9,2.73053351]
[1734379254088,0.7593,4057.1,4056.0,0.3811084]
[1734379254305,0.7593,4057.1,4055.9,3.04578404]
[1734379254306,0.18394922,4057.0,4055.9,3.04578404]
[1734379254619,0.7593,4057.1,4056.0,0.31525053]
[1734379254772,0.18404546,4057.0,4056.0,0.31525053]
[1734379255099,0.18404546,4056.9,4056.0,0.31525053]
[1734379255301,0.18404546,4056.9,4055.9,3.02408781]
[1734379255302,0.18404546,4056.8,4055.8,0.7653]
[1734379255503,0.1477536,4057.2,4055.8,0.7653]
[1734379255504,0.18404546,4056.7,4055.8,0.7653]
[1734379255703,0.787,4057.1,4055.8,0.7653]
[1734379255909,0.18408272,4057.0,4055.8,0.7653]
[1734379256091,0.787,4056.9,4055.5,3.55853351]
[1734379256300,0.18408999,4056.8,4055.5,0.828]
[1734379256496,0.97108999,4056.7,4055.5,0.828]
[1734379256697,0.8094,4056.5,4055.4,0.2935543]
[1734379257019,0.99348999,4056.4,4054.8,0.8314]
[1734379257219,0.52995299,4056.3,4054.8,1.56893361]
[1734379257429,0.99348999,4056.2,4054.8,1.1249543]
[1734379257611,0.18408999,4056.1,4054.8,1.1249543]
[1734379257780,0.18408999,4056.0,4054.8,1.1249543]
[1734379257981,0.18408999,4055.9,4054.8,1.1249543]
[1734379258181,0.8094,4056.2,4054.8,1.1249543]
[1734379258423,0.18411322,4056.1,4054.9,0.31525053]
[1734379258628,0.18411322,4056.0,4055.0,0.2935543]
[1734379258950,0.18409105,4055.9,4055.0,0.2935543]
[1734379259112,0.8094,4056.2,4055.1,2.73053351]
[1734379259315,0.18409045,4056.1,4055.2,0.652144]
[1734379259627,0.8094,4056.2,4055.2,0.62748813]
[1734379259847,0.18406661,4056.1,4055.2,0.62748813]
[1734379260042,0.8094,4056.2,4055.2,0.33393383]
[1734379260213,0.1840669,4056.1,4055.2,0.33393383]
[1734379260415,0.8094,4056.2,4054.8,1.14665053]
[1734379260611,0.18406481,4056.1,4054.8,1.44020483]
[1734379260843,0.18406481,4056.0,4054.8,1.44020483]
[1734379261004,0.8094,4056.2,4054.8,1.44020483]
[1734379261005,0.8094,4056.2,4055.1,2.73053351]
[1734379261205,0.18405677,4056.1,4055.1,3.02408781]
[1734379261422,0.18405677,4056.0,4055.2,0.60880483]
[1734379261702,0.8094,4056.2,4055.2,0.60880483]
[1734379261907,0.18403553,4056.1,4055.2,0.60880483]
[1734379262110,0.18403553,4056.0,4055.2,0.60880483]
[1734379262416,0.8094,4056.2,4055.2,0.60880483]
[1734379262741,0.18401156,4056.1,4055.1,2.73053351]
[1734379262948,0.18401156,4056.0,4055.1,2.73053351]
[1734379263150,8.95,4056.9,4054.7,3.02408781]
[1734379263151,0.8033,4056.3,4054.7,3.02408781]
[1734379263322,0.8033,4056.1,4054.7,3.02408781]
[1734379263652,0.8033,4055.9,4054.7,3.02408781]
[1734379263829,0.18401328,4055.8,4054.7,3.02408781]
[1734379264030,0.8033,4055.9,4054.7,3.02408781]
[1734379264230,0.1839872,4055.8,4054.7,3.43306164]
[1734379264619,0.9670872,4055.7,4054.3,3.04578404]
[1734379264949,3.0,4056.5,4053.7,1.03212266]
[1734379264950,0.7831,4055.4,4053.7,1.03212266]
[1734379265133,0.9845872,4055.3,4053.5,4.09133834]
[1734379265447,0.8006,4055.1,4053.6,0.84585012]
[1734379265743,0.8006,4055.1,4053.9,2.73053351]
[1734379265957,0.8006,4055.1,4054.0,0.31525053]
[1734379266119,0.8006,4055.1,4054.0,0.60880483]
[1734379266316,0.8006,4055.1,4054.3,2.73053351]
[1734379266618,0.8006,4055.1,4054.4,0.2935543]
[1734379266833,0.8006,4055.1,4053.9,2.73053351]
[1734379268169,0.8006,4055.1,4054.3,2.73053351]
[1734379268448,0.8006,4055.1,4054.4,0.31525053]
[1734379268803,0.8006,4055.1,4054.3,0.2935543]
[1734379269004,0.8006,4055.1,4053.9,2.73053351]
[1734379269207,0.8006,4055.1,4053.9,3.38900851]
[1734379269605,0.8006,4055.1,4054.0,0.60880483]
[1734379270234,0.8006,4055.1,4054.3,2.73053351]
[1734379270550,0.8263,4055.5,4054.7,2.73053351]
[1734379270905,0.8263,4055.5,4054.7,3.33933834]
[1734379271105,0.8263,4055.5,4054.8,0.33393383]
[1734379271340,0.8263,4055.5,4054.9,0.02465887]
[1734379271548,0.8263,4055.5,4054.9,0.6334637]
[1734379271845,0.8263,4055.5,4054.9,0.2935543]
[1734379272056,0.8263,4055.5,4054.8,0.33393383]
[1734379272203,0.8263,4055.5,4054.3,2.73053351]
[1734379272408,0.8263,4055.5,4054.4,0.35003335]
[1734379272603,0.8263,4055.5,4054.5,0.60880483]
[1734379273058,0.8263,4055.5,4054.5,0.31525053]
[1734379273203,0.8263,4055.5,4054.4,0.35003335]
[1734379274067,0.8263,4055.5,4054.4,0.95883818]
[1734379274244,0.8263,4055.5,4054.5,1.07938233]
[1734379274615,0.8263,4055.5,4054.5,1.054722]
[1734379275253,0.8263,4055.5,4054.6,0.02465989]
[1734379275459,0.8263,4055.5,4054.5,1.054722]
[1734379276371,0.8263,4055.5,4054.3,2.73053351]
[1734379276525,0.8263,4055.5,4054.2,0.7698]
[1734379276861,0.8263,4055.5,4053.6,0.7693]
[1734379277022,0.98868732,4055.4,4053.6,0.7693]
[1734379277222,3.0,4055.8,4053.6,1.4944676]
[1734379277223,0.8052,4055.2,4053.6,1.4944676]
[1734379277519,0.8052,4055.1,4053.6,0.7251676]
[1734379278262,0.8172,4054.7,4053.4,2.11091502]
[1734379278456,0.8172,4054.6,4053.4,2.11091502]
[1734379279005,0.8172,4054.6,4053.1,2.74169481]
[1734379280390,0.8172,4054.5,4053.1,2.74169481]
[1734379280592,0.8172,4054.5,4053.1,3.35049964]
[1734379281185,0.8172,4054.5,4053.2,3.16494404]
[1734379281614,0.8172,4054.5,4054.0,2.73053351]
[1734379281897,0.8172,4054.5,4054.1,0.31525053]
[1734379282701,0.8172,4054.5,4054.0,2.73053351]
[1734379283059,0.787,4054.9,4054.4,2.73053351]
[1734379283274,0.787,4054.9,4054.5,0.02466171]
[1734379283473,0.787,4054.9,4054.4,2.73053351]
[1734379283685,0.787,4054.9,4054.4,3.04578404]
[1734379283890,0.787,4054.9,4054.4,3.35036244]
[1734379284185,0.787,4055.8,4054.8,2.73053351]
[1734379284385,0.18368445,4055.7,4055.2,2.73053351]
[1734379284585,0.787,4055.8,4055.2,2.73053351]
[1734379284820,0.787,4055.8,4055.3,0.02465796]
[1734379284985,0.787,4055.8,4055.2,2.73053351]
[1734379284986,0.787,4055.8,4055.4,0.27551915]
[1734379286721,0.787,4055.8,4055.2,2.73053351]
[1734379292179,3.0,4056.5,4055.2,2.73053351]
[1734379292180,1.3656,4056.4,4055.2,2.73053351]
[1734379292425,0.18388706,4056.3,4055.2,2.73053351]
[1734379293761,0.97238706,4056.2,4055.2,2.73053351]
[1734379293933,0.33612577,4056.1,4055.2,2.73053351]
[1734379294225,0.7885,4056.2,4055.6,2.73053351]
[1734379294382,0.7584,4056.9,4055.6,3.48793351]
[1734379294785,0.1838468,4056.8,4055.6,3.48793351]
[1734379295129,0.1838468,4056.7,4055.6,3.83672686]
[1734379295329,0.7584,4056.9,4055.6,2.73053351]
[1734379295522,0.7504,4056.6,4055.6,2.73053351]
[1734379297396,0.7504,4056.6,4055.2,2.73053351]
[1734379297397,0.55,4056.5,4055.2,2.73053351]
[1734379297631,0.8293,4056.2,4054.8,2.73053351]
[1734379297928,0.8293,4055.8,4054.2,1.03212266]
[1734379298227,0.55,4055.5,4054.2,0.60867402]
[1734379298783,0.55,4055.5,4054.4,2.73053351]
[1734379301584,0.55,4055.5,4054.0,2.73053351]
[1734379301837,0.55,4055.5,4054.1,2.11113328]
[1734379302127,0.55,4055.5,4054.0,2.73053351]
[1734379302128,0.55,4055.5,4054.4,2.73053351]
[1734379302345,0.701723,4055.5,4054.4,2.73053351]
[1734379302887,0.8293,4055.6,4054.6,0.8296]
[1734379303135,0.8293,4055.6,4054.7,0.02465856]
[1734379303897,0.8293,4055.6,4054.8,1.13814753]
[1734379304107,0.8293,4055.6,4054.9,0.02465735]
[1734379304413,0.8293,4055.6,4054.6,0.8296]
[1734379304588,0.8293,4055.6,4054.7,1.36493497]
[1734379304788,0.8293,4055.6,4054.7,0.52010337]
[1734379305225,0.8293,4055.6,4054.8,3.57577477]
[1734379305425,1.3038,4056.4,4054.9,0.02465694]
[1734379305638,0.18378115,4056.3,4054.8,2.73053351]
[1734379305843,0.55,4056.2,4054.9,1.39063552]
[1734379306036,0.55,4056.2,4054.9,0.54522394]
[1734379306240,0.55,4056.3,4054.9,0.54522394]
[1734379306440,0.1837657,4056.2,4054.9,0.54522394]
[1734379306644,0.1837657,4056.2,4055.0,0.51432067]
[1734379307744,0.7597,4056.1,4055.0,0.51432067]
[1734379307942,0.1837657,4056.2,4054.6,1.03212266]
[1734379307943,0.55,4055.8,4054.6,1.03212266]
[1734379308156,0.55,4055.8,4054.7,0.84531441]
[1734379308157,0.7597,4055.7,4054.7,0.84531441]
[1734379308317,0.7597,4055.7,4054.4,3.76265617]
[1734379308518,0.7597,4055.7,4054.5,3.76006741]
[1734379308743,0.7597,4055.7,4054.6,2.11353593]
[1734379308907,0.7597,4055.7,4054.6,0.84542829]
[1734379309255,0.7597,4055.7,4054.5,0.61437402]
[1734379309557,0.7597,4055.7,4054.6,0.84559452]
[1734379309920,0.7597,4055.7,4054.5,0.61437402]
[1734379310122,0.7597,4055.7,4054.6,0.84572411]
[1734379310457,0.18404855,4055.6,4054.6,0.84572411]
[1734379310752,0.18404855,4055.6,4054.6,1.45128954]
[1734379311045,0.7597,4055.7,4054.6,0.60556543]
[1734379311547,0.18404865,4055.6,4054.6,0.60556543]
[1734379311718,0.55,4055.4,4054.3,1.86502266]
[1734379311920,1.00207789,4055.3,4054.4,0.84600283]
[1734379312138,1.00207789,4055.3,4054.0,2.73053351]
[1734379312139,0.8179,4055.1,4054.0,1.03212266]
[1734379312309,0.8179,4054.9,4053.8,1.03212266]
[1734379312513,0.55,4054.8,4053.9,2.11631573]
[1734379312830,0.8179,4054.7,4053.6,1.03212266]
[1734379313031,0.95469,4054.7,4053.7,2.1165556]
[1734379313245,0.95469,4054.7,4053.8,2.1165556]
[1734379313543,0.95469,4054.7,4053.9,0.84662224]
[1734379313751,0.55,4055.3,4054.0,3.52333351]
[1734379313951,0.18421928,4055.2,4054.1,2.11606927]
[1734379314246,0.8179,4055.4,4054.1,2.11606927]
[1734379314456,0.18421466,4055.3,4054.1,2.11606927]
[1734379314609,0.18421466,4055.3,4054.2,0.72803029]
[1734379314944,0.18421466,4055.2,4054.2,0.72803029]
[1734379315147,0.18421927,4055.1,4054.3,0.02466243]
[1734379315446,0.55,4055.3,4054.1,0.02466242]
[1734379315652,0.18419563,4055.2,4054.2,2.11526897]
[1734379315947,0.18419563,4055.2,4054.3,1.38839189]
[1734379316243,0.8179,4055.4,4054.3,0.542222]
[1734379316413,0.18419188,4055.3,4054.3,0.542222]
[1734379316614,0.18419188,4055.2,4054.3,0.542222]
[1734379316816,0.8179,4055.4,4054.3,0.542222]
[1734379317006,0.18419188,4055.3,4054.3,0.542222]
[1734379317213,0.18419188,4055.2,4054.3,0.542222]
[1734379317455,0.8179,4055.4,4054.3,0.542222]
[1734379317761,0.8179,4055.4,4054.0,4.55545617]
[1734379317921,0.8179,4055.4,4054.1,2.11600211]
[1734379318123,0.18418592,4055.3,4054.2,2.11600211]
[1734379318458,0.93418592,4055.2,4054.0,4.55545617]
[1734379318660,0.75,4055.2,4054.1,2.72636242]
[1734379318955,0.18417802,4055.1,4054.2,0.84639936]
[1734379319125,0.75,4055.2,4054.2,0.84639936]
[1734379319126,0.75,4055.2,4054.2,2.11590809]
[1734379319333,0.75,4055.2,4054.3,0.84639936]
[1734379319528,0.75,4055.2,4054.1,0.61036402]
[1734379319745,0.75,4055.2,4054.2,0.846165]
[1734379320053,0.75,4055.2,4054.0,2.73053351]
[1734379320218,0.75,4055.2,4054.1,2.57074755]
[1734379320415,0.75,4055.2,4054.2,0.8459469]
[1734379320622,0.75,4055.2,4054.3,0.8459469]
[1734379320817,0.75,4055.2,4054.1,0.45554562]
[1734379321127,0.75,4055.2,4054.0,2.73053351]
[1734379321128,0.75,4055.2,4054.2,1.16460255]
[1734379321357,0.75,4055.2,4054.2,0.31860791]
[1734379321358,0.18415904,4055.1,4054.2,0.31860791]
[1734379321709,0.18415904,4055.1,4053.6,0.2935543]
[1734379321710,0.55,4054.9,4053.5,1.03212266]
[1734379321914,2.73053351,4055.6,4053.6,2.11570313]
[1734379321915,0.55,4054.7,4053.6,2.11570313]
[1734379322152,0.55,4054.7,4053.3,1.03212266]
[1734379322153,0.75,4054.5,4053.3,1.03212266]
[1734379322372,0.75,4054.5,4053.4,2.11670595]
[1734379322575,0.55,4054.2,4053.1,1.04328396]
[1734379322772,0.55,4054.0,4053.1,0.0111613]
[1734379323084,0.8333,4053.7,4053.1,0.0111613]
[1734379323374,0.7606,4053.5,4053.1,0.0111613]
[1734379323580,0.7606,4053.3,4053.1,0.0111613]
[1734379323719,0.73415547,4053.2,4053.0,23.59444211]
[1734379324063,1.03260993,4053.8,4053.0,23.59444211]
[1734379324064,1.49475547,4053.1,4053.0,23.59444211]
[1734379325129,1.3106,4053.1,4053.0,23.59444211]
[1734379326385,1.3106,4053.1,4053.0,22.98917005]
[1734379326667,3.9614071,4053.1,4053.0,22.74567168]
[1734379326816,1.91617913,4053.1,4053.0,22.38042411]
[1734379327023,1.91617913,4053.1,4053.0,20.91943386]
[1734379327285,1.73261203,4053.1,4053.0,20.91943386]
[1734379330245,1.3106,4053.1,4053.0,10.91943386]
[1734379330446,8.95,4053.2,4053.0,10.91943386]
[1734379331923,0.55,4053.4,4053.0,10.91943386]
[1734379332362,2.46659,4054.2,4053.0,10.91943386]